[Event "*** Titled Tuesday Blitz"]
[Site "Chess.com"]
[Date "2018.12.04"]
[Round "2"]
[White "nOcHeaTiNgKiD"]
[Black "BvsN"]
[Result "1/2-1/2"]
[WhiteElo "2427"]
[BlackElo "2293"]
[TimeControl "180+2"]
[EndTime "13:23:33 PST"]
[Termination "Game drawn by repetition"]

1. c4 {[%clk 0:03:01.9]} 1... e5 {[%clk 0:03:00.2]} 2. Nc3 {[%clk 0:03:01.5]}
2... Bb4 {[%clk 0:02:59.9]} 3. Nd5 {[%clk 0:03:00.5]} 3... Bc5 {[%clk
0:03:00.6]} 4. Nf3 {[%clk 0:03:00.9]} 4... c6 {[%clk 0:02:58.4]} 5. Nc3 {[%clk
0:02:54.9]} 5... d6 {[%clk 0:02:59.1]} 6. e3 {[%clk 0:02:54.9]} 6... Qe7 {[%clk
0:02:57.4]} 7. d4 {[%clk 0:02:50.6]} 7... exd4 {[%clk 0:02:58]} 8. Nxd4 {[%clk
0:02:52.2]} 8... Nf6 {[%clk 0:02:58.4]} 9. Be2 {[%clk 0:02:52.8]} 9... O-O
{[%clk 0:02:58.9]} 10. O-O {[%clk 0:02:54]} 10... Re8 {[%clk 0:02:42.9]} 11. a3
{[%clk 0:02:51.1]} 11... a5 {[%clk 0:02:43.1]} 12. Rb1 {[%clk 0:02:49.2]} 12...
Nbd7 {[%clk 0:02:23]} 13. b4 {[%clk 0:02:47.9]} 13... axb4 {[%clk 0:02:23.3]}
14. axb4 {[%clk 0:02:49.8]} 14... Bb6 {[%clk 0:02:22]} 15. Bb2 {[%clk
0:02:42.5]} 15... Ne5 {[%clk 0:02:18.3]} 16. h3 {[%clk 0:02:43.3]} 16... Ng6
{[%clk 0:02:13.8]} 17. Re1 {[%clk 0:02:23.5]} 17... Ne4 {[%clk 0:02:12.9]} 18.
Nxe4 {[%clk 0:02:22.1]} 18... Qxe4 {[%clk 0:02:13.8]} 19. Bf3 {[%clk 0:02:21.4]}
19... Qe7 {[%clk 0:02:04.1]} 20. Ra1 {[%clk 0:02:00.8]} 20... Rxa1 {[%clk
0:01:52.9]} 21. Bxa1 {[%clk 0:02:01.2]} 21... Nh4 {[%clk 0:01:44.9]} 22. Bg4
{[%clk 0:02:01.6]} 22... Qe4 {[%clk 0:01:25.3]} 23. f3 {[%clk 0:01:52.3]} 23...
Bxg4 {[%clk 0:01:22.9]} 24. hxg4 {[%clk 0:01:46.3]} 24... Qe7 {[%clk 0:01:18.1]}
25. g3 {[%clk 0:01:26.1]} 25... Bxd4 {[%clk 0:01:15.5]} 26. Bxd4 {[%clk
0:01:25.5]} 26... Ng6 {[%clk 0:01:06.4]} 27. Qa1 {[%clk 0:01:18.9]} 27... f6
{[%clk 0:01:06.2]} 28. c5 {[%clk 0:01:16.1]} 28... Ne5 {[%clk 0:01:05.4]} 29.
Bxe5 {[%clk 0:01:15.4]} 29... dxe5 {[%clk 0:01:00.2]} 30. Rd1 {[%clk 0:01:12.4]}
30... f5 {[%clk 0:00:57.4]} 31. Qa2+ {[%clk 0:01:07.3]} 31... Kh8 {[%clk
0:00:50.9]} 32. gxf5 {[%clk 0:00:49.1]} 32... Qg5 {[%clk 0:00:51.9]} 33. Kf2
{[%clk 0:00:37.8]} 33... Qxf5 {[%clk 0:00:50]} 34. e4 {[%clk 0:00:38.9]} 34...
Qh5 {[%clk 0:00:47.6]} 35. Kg2 {[%clk 0:00:35.2]} 35... Rf8 {[%clk 0:00:47.4]}
36. Rd3 {[%clk 0:00:32.3]} 36... h6 {[%clk 0:00:45.5]} 37. Qd2 {[%clk
0:00:31.8]} 37... Kh7 {[%clk 0:00:41.1]} 38. Qd1 {[%clk 0:00:27]} 38... Rf7
{[%clk 0:00:24.9]} 39. Rd7 {[%clk 0:00:23.9]} 39... Qg6 {[%clk 0:00:11.4]} 40.
Rxf7 {[%clk 0:00:21.1]} 40... Qxf7 {[%clk 0:00:12.5]} 41. Qd6 {[%clk 0:00:20.9]}
41... Qa2+ {[%clk 0:00:12.8]} 42. Kh3 {[%clk 0:00:20.7]} 42... Qe2 {[%clk
0:00:12.3]} 43. Qxe5 {[%clk 0:00:20.8]} 43... Qxf3 {[%clk 0:00:13.2]} 44. Qf5+
{[%clk 0:00:22.2]} 44... Qxf5+ {[%clk 0:00:13.9]} 45. exf5 {[%clk 0:00:24.1]}
45... Kg8 {[%clk 0:00:14.7]} 46. Kg4 {[%clk 0:00:25.1]} 46... Kf7 {[%clk
0:00:16]} 47. Kf4 {[%clk 0:00:25.9]} 47... Kf6 {[%clk 0:00:17]} 48. g4 {[%clk
0:00:27.4]} 48... g6 {[%clk 0:00:13.4]} 49. fxg6 {[%clk 0:00:26.4]} 49... Kxg6
{[%clk 0:00:14.6]} 50. Kf3 {[%clk 0:00:25.2]} 50... Kg5 {[%clk 0:00:11.3]} 51.
Kg3 {[%clk 0:00:26]} 51... Kf6 {[%clk 0:00:09.2]} 52. Kf4 {[%clk 0:00:25.2]}
52... Kg6 {[%clk 0:00:10.3]} 53. Kf3 {[%clk 0:00:26.2]} 53... Kf6 {[%clk
0:00:09.3]} 54. Kf4 {[%clk 0:00:26.7]} 54... Kg6 {[%clk 0:00:10.3]} 55. Kf3
{[%clk 0:00:28]} 55... Kf6 {[%clk 0:00:09.6]} 56. Kf4 {[%clk 0:00:29.3]} 1/2-1/2

[Event "*** Titled Tuesday Blitz"]
[Site "Chess.com"]
[Date "2018.12.04"]
[Round "2"]
[White "biostatistician"]
[Black "ruvat"]
[Result "1-0"]
[WhiteElo "2448"]
[BlackElo "2296"]
[TimeControl "180+2"]
[EndTime "13:23:34 PST"]
[Termination "biostatistician won on time"]

1. d4 {[%clk 0:03:01.7]} 1... d6 {[%clk 0:03:00.6]} 2. Nf3 {[%clk 0:03:03.6]}
2... g6 {[%clk 0:03:00.9]} 3. c4 {[%clk 0:03:05.5]} 3... Bg7 {[%clk 0:03:02.1]}
4. Nc3 {[%clk 0:03:07.4]} 4... Bg4 {[%clk 0:03:03.2]} 5. e3 {[%clk 0:03:08.6]}
5... Nc6 {[%clk 0:03:04.3]} 6. Be2 {[%clk 0:03:09.2]} 6... e5 {[%clk 0:03:04.9]}
7. h3 {[%clk 0:03:10.3]} 7... Bxf3 {[%clk 0:03:05]} 8. Bxf3 {[%clk 0:03:12.2]}
8... exd4 {[%clk 0:03:05.7]} 9. exd4 {[%clk 0:03:14.1]} 9... Nge7 {[%clk
0:03:06]} 10. O-O {[%clk 0:03:14.3]} 10... O-O {[%clk 0:03:04.4]} 11. Re1 {[%clk
0:03:12.1]} 11... Bxd4 {[%clk 0:02:31.7]} 12. Bg5 {[%clk 0:03:01.5]} 12... Be5
{[%clk 0:02:16]} 13. Nd5 {[%clk 0:02:56.9]} 13... f6 {[%clk 0:02:07.8]} 14. Bh6
{[%clk 0:02:56.7]} 14... Re8 {[%clk 0:02:02.9]} 15. Qd2 {[%clk 0:02:57.9]} 15...
Nf5 {[%clk 0:02:02.4]} 16. Bf4 {[%clk 0:02:51]} 16... Ncd4 {[%clk 0:01:50.8]}
17. Be4 {[%clk 0:02:45.1]} 17... c6 {[%clk 0:01:44.6]} 18. Nc3 {[%clk 0:02:46]}
18... Ne6 {[%clk 0:01:24.6]} 19. Bxf5 {[%clk 0:02:22]} 19... Nxf4 {[%clk
0:01:21.8]} 20. Be4 {[%clk 0:02:22.7]} 20... f5 {[%clk 0:01:11.8]} 21. Bf3
{[%clk 0:02:23.2]} 21... Qf6 {[%clk 0:01:04.1]} 22. Rac1 {[%clk 0:02:23.2]}
22... Re7 {[%clk 0:00:56.9]} 23. Re3 {[%clk 0:01:46.7]} 23... Rae8 {[%clk
0:00:51.2]} 24. Rd1 {[%clk 0:01:34]} 24... Ne6 {[%clk 0:00:45.2]} 25. Rd3 {[%clk
0:01:26.7]} 25... Nc5 {[%clk 0:00:42.4]} 26. Re3 {[%clk 0:01:22.6]} 26... a5
{[%clk 0:00:29.7]} 27. Ree1 {[%clk 0:01:14.1]} 27... Bxc3 {[%clk 0:00:24.4]} 28.
bxc3 {[%clk 0:01:15]} 28... Rxe1+ {[%clk 0:00:24]} 29. Rxe1 {[%clk 0:01:16.9]}
29... Rxe1+ {[%clk 0:00:24.7]} 30. Qxe1 {[%clk 0:01:18.8]} 30... Qe5 {[%clk
0:00:25.8]} 31. Qd2 {[%clk 0:01:17.7]} 31... Kg7 {[%clk 0:00:26.9]} 32. g3
{[%clk 0:01:15.8]} 32... h6 {[%clk 0:00:26.7]} 33. h4 {[%clk 0:01:17.1]} 33...
Kf6 {[%clk 0:00:21.9]} 34. Kg2 {[%clk 0:01:17.6]} 34... Kg7 {[%clk 0:00:22]} 35.
Kg1 {[%clk 0:01:16.1]} 35... Na4 {[%clk 0:00:22.5]} 36. Kg2 {[%clk 0:00:55.6]}
36... Nxc3 {[%clk 0:00:20.8]} 37. Qb2 {[%clk 0:00:57]} 37... b5 {[%clk
0:00:14.6]} 38. Bxc6 {[%clk 0:00:53.7]} 38... b4 {[%clk 0:00:15.2]} 39. Bf3
{[%clk 0:00:50.4]} 39... Na4 {[%clk 0:00:14.1]} 40. Qd2 {[%clk 0:00:47.1]} 40...
Nc5 {[%clk 0:00:14.6]} 41. Bd5 {[%clk 0:00:42.9]} 41... h5 {[%clk 0:00:14.9]}
42. Qg5 {[%clk 0:00:41.5]} 42... a4 {[%clk 0:00:13.3]} 43. Qd8 {[%clk
0:00:42.3]} 43... Qf6 {[%clk 0:00:06.8]} 44. Qc7+ {[%clk 0:00:29.5]} 44... Kh6
{[%clk 0:00:07.2]} 45. Bg8 {[%clk 0:00:31.1]} 45... Qg7 {[%clk 0:00:05.9]} 46.
Qxd6 {[%clk 0:00:32.2]} 46... Ne4 {[%clk 0:00:04.4]} 47. Qd8 {[%clk 0:00:31.3]}
47... b3 {[%clk 0:00:04.1]} 48. axb3 {[%clk 0:00:32.3]} 48... axb3 {[%clk
0:00:05.3]} 49. f3 {[%clk 0:00:33.5]} 49... b2 {[%clk 0:00:05]} 50. fxe4 {[%clk
0:00:34.2]} 1-0

[Event "*** Titled Tuesday Blitz"]
[Site "Chess.com"]
[Date "2018.12.04"]
[Round "2"]
[White "tigra"]
[Black "akretchetov"]
[Result "1-0"]
[WhiteElo "2793"]
[BlackElo "2352"]
[TimeControl "180+2"]
[EndTime "13:23:38 PST"]
[Termination "tigra won by resignation"]

1. d4 {[%clk 0:03:01.9]} 1... Nf6 {[%clk 0:03:00.3]} 2. g4 {[%clk 0:03:01.7]}
2... h6 {[%clk 0:02:58.9]} 3. Bg2 {[%clk 0:03:00.6]} 3... d5 {[%clk 0:02:59]} 4.
h3 {[%clk 0:03:01.7]} 4... c5 {[%clk 0:02:56.8]} 5. c3 {[%clk 0:03:01.2]} 5...
cxd4 {[%clk 0:02:55.7]} 6. cxd4 {[%clk 0:03:03.1]} 6... Nc6 {[%clk 0:02:56.4]}
7. Nc3 {[%clk 0:03:04.7]} 7... e6 {[%clk 0:02:50.4]} 8. a3 {[%clk 0:03:02.9]}
8... Bd7 {[%clk 0:02:44.7]} 9. e3 {[%clk 0:02:55.7]} 9... Rc8 {[%clk 0:02:45.1]}
10. Nge2 {[%clk 0:02:56.1]} 10... Na5 {[%clk 0:02:37.3]} 11. O-O {[%clk
0:02:54.7]} 11... Be7 {[%clk 0:02:37.1]} 12. Ng3 {[%clk 0:02:52.4]} 12... Nc4
{[%clk 0:02:35.4]} 13. f4 {[%clk 0:02:52]} 13... a6 {[%clk 0:02:30.1]} 14. g5
{[%clk 0:02:50.2]} 14... Ng8 {[%clk 0:02:23.5]} 15. h4 {[%clk 0:02:33.8]} 15...
hxg5 {[%clk 0:02:22.6]} 16. hxg5 {[%clk 0:02:32.9]} 16... Nd6 {[%clk 0:02:10.1]}
17. Bd2 {[%clk 0:02:28.6]} 17... Bb5 {[%clk 0:02:02.8]} 18. Rf2 {[%clk
0:02:23.8]} 18... Bd3 {[%clk 0:02:02.7]} 19. Rc1 {[%clk 0:02:10.3]} 19... Bg6
{[%clk 0:01:57.7]} 20. b3 {[%clk 0:02:07.6]} 20... Nf5 {[%clk 0:01:56.6]} 21.
Nxf5 {[%clk 0:02:06.8]} 21... Bxf5 {[%clk 0:01:57.2]} 22. b4 {[%clk 0:02:05.8]}
22... Bd6 {[%clk 0:01:48.3]} 23. Na4 {[%clk 0:01:47.9]} 23... Ne7 {[%clk
0:01:40]} 24. Nc5 {[%clk 0:01:46.6]} 24... Rc7 {[%clk 0:01:23.8]} 25. b5 {[%clk
0:01:44.1]} 25... Nc8 {[%clk 0:01:06.5]} 26. bxa6 {[%clk 0:01:39.2]} 26... b6
{[%clk 0:01:06.6]} 27. Nb7 {[%clk 0:01:38.9]} 27... Qd7 {[%clk 0:01:06.7]} 28.
Rxc7 {[%clk 0:01:36.3]} 28... Qxc7 {[%clk 0:01:07.3]} 29. Bf1 {[%clk 0:01:12.8]}
29... O-O {[%clk 0:01:01]} 30. Rh2 {[%clk 0:01:10.8]} 30... Bg6 {[%clk
0:00:56.4]} 31. Bb4 {[%clk 0:00:58.5]} 31... Bxb4 {[%clk 0:00:53]} 32. axb4
{[%clk 0:01:00.4]} 32... Qc3 {[%clk 0:00:47.5]} 33. Qd2 {[%clk 0:00:58.1]} 33...
Qa1 {[%clk 0:00:47.1]} 34. Kf2 {[%clk 0:00:53.6]} 34... Ne7 {[%clk 0:00:42.7]}
35. Qe1 {[%clk 0:00:37.9]} 35... Qa2+ {[%clk 0:00:40.7]} 36. Kg1 {[%clk
0:00:38.8]} 36... Qa3 {[%clk 0:00:35.1]} 37. Nd6 {[%clk 0:00:26.6]} 37... Rd8
{[%clk 0:00:32.6]} 38. Nb5 {[%clk 0:00:27.1]} 38... Qxa6 {[%clk 0:00:31.3]} 39.
Qc1 {[%clk 0:00:12.8]} 39... Qb7 {[%clk 0:00:27]} 40. Qc7 {[%clk 0:00:12.5]}
40... Qxc7 {[%clk 0:00:27.3]} 41. Nxc7 {[%clk 0:00:14.4]} 41... Rc8 {[%clk
0:00:28.1]} 42. Na6 {[%clk 0:00:15]} 42... Rc1 {[%clk 0:00:27.4]} 43. Rd2 {[%clk
0:00:15.7]} 43... Nf5 {[%clk 0:00:24.2]} 44. Kf2 {[%clk 0:00:16.9]} 44... Nd6
{[%clk 0:00:22.4]} 45. Bg2 {[%clk 0:00:18.4]} 45... Nc4 {[%clk 0:00:22.6]} 46.
Ra2 {[%clk 0:00:19.5]} 46... Rb1 {[%clk 0:00:20.3]} 47. Nb8 {[%clk 0:00:16.3]}
47... Rxb4 {[%clk 0:00:19.2]} 48. Ra8 {[%clk 0:00:16.9]} 48... Kh7 {[%clk
0:00:19.2]} 49. Nd7 {[%clk 0:00:17.4]} 49... Be4 {[%clk 0:00:13.4]} 50. Nf8+
{[%clk 0:00:17.7]} 50... Kg8 {[%clk 0:00:14.1]} 51. Nxe6+ {[%clk 0:00:19.6]}
51... Kh7 {[%clk 0:00:14.8]} 52. Nf8+ {[%clk 0:00:21.5]} 52... Kg8 {[%clk
0:00:15.8]} 53. Bxe4 {[%clk 0:00:21.8]} 53... dxe4 {[%clk 0:00:16.1]} 54. f5
{[%clk 0:00:23.2]} 54... Nd6 {[%clk 0:00:14.2]} 55. Ng6+ {[%clk 0:00:23.7]} 1-0

[Event "*** Titled Tuesday Blitz"]
[Site "Chess.com"]
[Date "2018.12.04"]
[Round "2"]
[White "Muguet7"]
[Black "Schachmalanders"]
[Result "1/2-1/2"]
[WhiteElo "2446"]
[BlackElo "2316"]
[TimeControl "180+2"]
[EndTime "13:23:40 PST"]
[Termination "Game drawn by agreement"]

1. d4 {[%clk 0:03:01.9]} 1... d5 {[%clk 0:02:55.1]} 2. c4 {[%clk 0:03:02.7]}
2... e6 {[%clk 0:02:55.6]} 3. Nc3 {[%clk 0:03:02.9]} 3... c6 {[%clk 0:02:56.9]}
4. e3 {[%clk 0:03:03.4]} 4... f5 {[%clk 0:02:57.4]} 5. Nf3 {[%clk 0:03:02.6]}
5... Nf6 {[%clk 0:02:58.7]} 6. b3 {[%clk 0:03:01.5]} 6... Bd6 {[%clk 0:02:58.4]}
7. Bd3 {[%clk 0:03:02.2]} 7... O-O {[%clk 0:02:58.5]} 8. O-O {[%clk 0:03:03]}
8... Bd7 {[%clk 0:02:53.3]} 9. Ne2 {[%clk 0:03:03.8]} 9... Be8 {[%clk
0:02:54.1]} 10. Nf4 {[%clk 0:03:04.6]} 10... Qe7 {[%clk 0:02:53.4]} 11. Bb2
{[%clk 0:03:01.2]} 11... h6 {[%clk 0:02:54.2]} 12. Be2 {[%clk 0:03:01.5]} 12...
g5 {[%clk 0:02:54.6]} 13. Nd3 {[%clk 0:03:02.4]} 13... Bh5 {[%clk 0:02:47.5]}
14. Nfe5 {[%clk 0:03:02.4]} 14... Bxe2 {[%clk 0:02:48]} 15. Qxe2 {[%clk
0:03:03.3]} 15... Nbd7 {[%clk 0:02:47.6]} 16. f3 {[%clk 0:03:02.2]} 16... Kh7
{[%clk 0:02:43.4]} 17. a3 {[%clk 0:02:48.8]} 17... Rg8 {[%clk 0:02:43.2]} 18. b4
{[%clk 0:02:37.1]} 18... Rg7 {[%clk 0:02:42.1]} 19. Nxd7 {[%clk 0:02:30.2]}
19... Nxd7 {[%clk 0:02:39.6]} 20. Ne5 {[%clk 0:02:31.2]} 20... Nxe5 {[%clk
0:02:30.2]} 21. dxe5 {[%clk 0:02:31.9]} 21... Bc7 {[%clk 0:02:30.3]} 22. cxd5
{[%clk 0:02:28.8]} 22... cxd5 {[%clk 0:02:23.6]} 23. e4 {[%clk 0:02:29]} 23...
dxe4 {[%clk 0:02:09]} 24. fxe4 {[%clk 0:02:30]} 24... f4 {[%clk 0:02:10.5]} 25.
Rac1 {[%clk 0:02:23.7]} 25... Rgg8 {[%clk 0:02:09.6]} 26. Kh1 {[%clk 0:02:22.2]}
26... Rgd8 {[%clk 0:02:08.1]} 27. Rfd1 {[%clk 0:02:21.9]} 27... Rxd1+ {[%clk
0:02:07.4]} 28. Rxd1 {[%clk 0:02:21.3]} 28... Rd8 {[%clk 0:02:07.5]} 29. Rc1
{[%clk 0:02:20.5]} 29... Bb6 {[%clk 0:02:04.7]} 30. h3 {[%clk 0:02:14.9]} 30...
Qd7 {[%clk 0:02:04.2]} 31. Qg4 {[%clk 0:02:08.9]} 31... Rf8 {[%clk 0:01:44.7]}
32. Rd1 {[%clk 0:02:06.4]} 32... Qf7 {[%clk 0:01:36.4]} 33. Qf3 {[%clk
0:01:44.6]} 33... Qe7 {[%clk 0:01:05.9]} 34. Bd4 {[%clk 0:01:41.8]} 34... g4
{[%clk 0:01:02.4]} 35. Qxg4 {[%clk 0:01:35.7]} 35... f3 {[%clk 0:00:57]} 36.
Bxb6 {[%clk 0:01:23.6]} 36... fxg2+ {[%clk 0:00:52.7]} 37. Qxg2 {[%clk
0:01:24.2]} 37... axb6 {[%clk 0:00:53.7]} 38. Rg1 {[%clk 0:01:24.7]} 38... Qf7
{[%clk 0:00:52.4]} 39. h4 {[%clk 0:01:09.2]} 39... Qf3 {[%clk 0:00:52.1]} 40.
Rc1 {[%clk 0:01:03.2]} 40... Qf7 {[%clk 0:00:38.1]} 41. Rg1 {[%clk 0:00:57.8]}
41... Qf3 {[%clk 0:00:38.7]} 42. Qxf3 {[%clk 0:00:47.9]} 42... Rxf3 {[%clk
0:00:40.6]} 43. Rc1 {[%clk 0:00:48.9]} 43... Rxa3 {[%clk 0:00:38.8]} 44. Rc7+
{[%clk 0:00:49.9]} 44... Kg6 {[%clk 0:00:37.6]} 45. Rxb7 {[%clk 0:00:51]} 45...
Kh5 {[%clk 0:00:32.2]} 46. Rxb6 {[%clk 0:00:51.8]} 46... Kxh4 {[%clk 0:00:33.6]}
47. Rxe6 {[%clk 0:00:50.4]} 47... h5 {[%clk 0:00:33.3]} 48. b5 {[%clk
0:00:48.2]} 48... Kg3 {[%clk 0:00:31.1]} 49. Rg6+ {[%clk 0:00:48.4]} 49... Kf4
{[%clk 0:00:32.3]} 50. e6 {[%clk 0:00:46.4]} 50... Ra7 {[%clk 0:00:29.6]} 51. b6
{[%clk 0:00:45.8]} 51... Rb7 {[%clk 0:00:30.9]} 52. Rf6+ {[%clk 0:00:29.3]}
52... Kxe4 {[%clk 0:00:30.7]} 53. Rf7 {[%clk 0:00:27.9]} 53... Rxb6 {[%clk
0:00:31.6]} 54. e7 {[%clk 0:00:26.3]} 54... Re6 {[%clk 0:00:32.5]} 55. Rf1
{[%clk 0:00:26.5]} 55... Kd5 {[%clk 0:00:29.3]} 56. Rd1+ {[%clk 0:00:27.4]}
56... Kc6 {[%clk 0:00:29.2]} 57. Rc1+ {[%clk 0:00:28.1]} 57... Kd7 {[%clk
0:00:30.2]} 58. Rc5 {[%clk 0:00:29]} 58... Kxe7 {[%clk 0:00:30]} 59. Rxh5 {[%clk
0:00:30.1]} 59... Re2 {[%clk 0:00:30.8]} 60. Kg1 {[%clk 0:00:30.7]} 1/2-1/2

[Event "*** Titled Tuesday Blitz"]
[Site "Chess.com"]
[Date "2018.12.04"]
[Round "2"]
[White "NikolaGry"]
[Black "Guenplen"]
[Result "0-1"]
[WhiteElo "2635"]
[BlackElo "2822"]
[TimeControl "180+2"]
[EndTime "13:23:44 PST"]
[Termination "Guenplen won by resignation"]

1. e4 {[%clk 0:03:01.9]} 1... c5 {[%clk 0:02:59.8]} 2. Nf3 {[%clk 0:03:02.3]}
2... e6 {[%clk 0:03:00.5]} 3. d4 {[%clk 0:03:01.2]} 3... cxd4 {[%clk 0:03:02.4]}
4. Nxd4 {[%clk 0:03:02.2]} 4... Nc6 {[%clk 0:03:03.2]} 5. Nc3 {[%clk 0:03:01.5]}
5... a6 {[%clk 0:03:04]} 6. Nxc6 {[%clk 0:02:58.8]} 6... bxc6 {[%clk 0:03:04.7]}
7. Bd3 {[%clk 0:02:59.7]} 7... d5 {[%clk 0:03:05.3]} 8. O-O {[%clk 0:02:59.7]}
8... Nf6 {[%clk 0:03:06.4]} 9. Qe2 {[%clk 0:02:55.8]} 9... Be7 {[%clk
0:03:07.2]} 10. b3 {[%clk 0:02:55.9]} 10... O-O {[%clk 0:03:07.8]} 11. Bb2
{[%clk 0:02:56.7]} 11... Bb7 {[%clk 0:03:01.4]} 12. Rad1 {[%clk 0:02:51.5]}
12... Qc7 {[%clk 0:03:02]} 13. Na4 {[%clk 0:02:28.7]} 13... dxe4 {[%clk
0:02:43.9]} 14. Bxe4 {[%clk 0:02:24.2]} 14... Nxe4 {[%clk 0:02:45.8]} 15. Qxe4
{[%clk 0:02:24.9]} 15... c5 {[%clk 0:02:46.7]} 16. Qg4 {[%clk 0:02:16.2]} 16...
g6 {[%clk 0:02:44.5]} 17. Qh3 {[%clk 0:02:00.7]} 17... Rfd8 {[%clk 0:02:32.5]}
18. Qc3 {[%clk 0:01:36.8]} 18... f6 {[%clk 0:02:31.2]} 19. Ba3 {[%clk
0:01:36.9]} 19... Rxd1 {[%clk 0:02:20.8]} 20. Rxd1 {[%clk 0:01:37]} 20... Rd8
{[%clk 0:02:22.4]} 21. Rxd8+ {[%clk 0:01:28.6]} 21... Qxd8 {[%clk 0:02:24.3]}
22. Qd3 {[%clk 0:01:29.2]} 22... Qc7 {[%clk 0:01:45.8]} 23. Qe3 {[%clk
0:01:23.5]} 23... Qd6 {[%clk 0:01:32.2]} 24. Qd3 {[%clk 0:01:16.5]} 24... Qe5
{[%clk 0:01:27.5]} 25. Qd2 {[%clk 0:00:39.5]} 25... Bd6 {[%clk 0:01:14.3]} 26.
f4 {[%clk 0:00:37.9]} 26... Qxf4 {[%clk 0:00:31.5]} 27. Qxf4 {[%clk 0:00:38.6]}
27... Bxf4 {[%clk 0:00:33.4]} 28. Nxc5 {[%clk 0:00:39.7]} 28... Bc8 {[%clk
0:00:29.3]} 29. Nd3 {[%clk 0:00:39]} 29... Be3+ {[%clk 0:00:29.5]} 30. Kf1
{[%clk 0:00:40.1]} 30... e5 {[%clk 0:00:27.1]} 31. c4 {[%clk 0:00:39.1]} 31...
Kf7 {[%clk 0:00:27.3]} 32. Bc1 {[%clk 0:00:37.1]} 32... Ba7 {[%clk 0:00:27.7]}
33. h3 {[%clk 0:00:34.4]} 33... Ke6 {[%clk 0:00:25.4]} 34. Ke2 {[%clk
0:00:35.2]} 34... Bb7 {[%clk 0:00:26]} 35. g3 {[%clk 0:00:29.7]} 35... Bc8
{[%clk 0:00:19.1]} 36. Be3 {[%clk 0:00:29.7]} 36... Bb8 {[%clk 0:00:20.5]} 37.
b4 {[%clk 0:00:29.6]} 37... Ke7 {[%clk 0:00:19.6]} 38. g4 {[%clk 0:00:30.4]}
38... h5 {[%clk 0:00:20.2]} 39. Nf2 {[%clk 0:00:29.6]} 39... hxg4 {[%clk
0:00:20.6]} 40. hxg4 {[%clk 0:00:30.8]} 40... f5 {[%clk 0:00:22.1]} 41. gxf5
{[%clk 0:00:32]} 41... gxf5 {[%clk 0:00:23.8]} 42. a4 {[%clk 0:00:32.5]} 42...
f4 {[%clk 0:00:23.2]} 43. Bc5+ {[%clk 0:00:33.1]} 43... Ke6 {[%clk 0:00:24.7]}
44. Kd3 {[%clk 0:00:31.3]} 44... Kf5 {[%clk 0:00:23.5]} 45. Ne4 {[%clk
0:00:32.2]} 45... Bb7 {[%clk 0:00:18.8]} 46. Nd6+ {[%clk 0:00:32.8]} 46... Bxd6
{[%clk 0:00:19.8]} 47. Bxd6 {[%clk 0:00:34]} 47... e4+ {[%clk 0:00:21.3]} 48.
Kd4 {[%clk 0:00:27.9]} 48... e3 {[%clk 0:00:21.9]} 49. Kd3 {[%clk 0:00:28.9]}
49... Bg2 {[%clk 0:00:21.4]} 50. c5 {[%clk 0:00:27]} 50... Bf1+ {[%clk
0:00:21.3]} 51. Kc2 {[%clk 0:00:27.8]} 51... Ke4 {[%clk 0:00:21.5]} 52. c6
{[%clk 0:00:27.7]} 52... f3 {[%clk 0:00:22]} 53. Bg3 {[%clk 0:00:26.8]} 53...
Bh3 {[%clk 0:00:20.3]} 54. Kd1 {[%clk 0:00:25.3]} 54... f2 {[%clk 0:00:20.8]}
55. Bxf2 {[%clk 0:00:26.4]} 55... exf2 {[%clk 0:00:21.8]} 56. Ke2 {[%clk
0:00:27.9]} 56... f1=Q+ {[%clk 0:00:22.8]} 57. Kd2 {[%clk 0:00:26.2]} 57... Qd3+
{[%clk 0:00:23.1]} 0-1

[Event "*** Titled Tuesday Blitz"]
[Site "Chess.com"]
[Date "2018.12.04"]
[Round "2"]
[White "Msb2"]
[Black "TregubovP"]
[Result "1-0"]
[WhiteElo "2744"]
[BlackElo "2561"]
[TimeControl "180+2"]
[EndTime "13:23:44 PST"]
[Termination "Msb2 won by resignation"]

1. d4 {[%clk 0:03:01.9]} 1... Nf6 {[%clk 0:02:56.8]} 2. Nf3 {[%clk 0:03:03.5]}
2... c5 {[%clk 0:02:56]} 3. d5 {[%clk 0:03:03.1]} 3... b5 {[%clk 0:02:57.1]} 4.
Bg5 {[%clk 0:03:02.2]} 4... Qb6 {[%clk 0:02:58.2]} 5. Bxf6 {[%clk 0:03:01.4]}
5... Qxf6 {[%clk 0:02:59.2]} 6. c3 {[%clk 0:03:02.4]} 6... g6 {[%clk 0:03:00.7]}
7. e4 {[%clk 0:03:03.6]} 7... Qb6 {[%clk 0:03:01.1]} 8. Nbd2 {[%clk 0:03:01.6]}
8... Bg7 {[%clk 0:03:02]} 9. Be2 {[%clk 0:03:01.9]} 9... O-O {[%clk 0:03:02]}
10. O-O {[%clk 0:03:03.5]} 10... d6 {[%clk 0:03:02.9]} 11. a4 {[%clk 0:03:04.8]}
11... b4 {[%clk 0:03:03.9]} 12. Nc4 {[%clk 0:03:06.1]} 12... Qc7 {[%clk
0:03:04.9]} 13. cxb4 {[%clk 0:03:07]} 13... cxb4 {[%clk 0:03:06]} 14. Rc1 {[%clk
0:03:08.6]} 14... Nd7 {[%clk 0:02:54.6]} 15. Nd4 {[%clk 0:03:09]} 15... Nc5
{[%clk 0:02:54.1]} 16. Nc6 {[%clk 0:02:59.3]} 16... Nxe4 {[%clk 0:02:42.6]} 17.
Bf3 {[%clk 0:03:00.3]} 17... Nc5 {[%clk 0:02:43.6]} 18. Re1 {[%clk 0:02:58.5]}
18... e6 {[%clk 0:02:37.1]} 19. dxe6 {[%clk 0:02:56.3]} 19... Bxe6 {[%clk
0:02:37.6]} 20. Nxd6 {[%clk 0:02:23.3]} 20... Nb3 {[%clk 0:02:38.4]} 21. Rxe6
{[%clk 0:02:02.1]} 21... fxe6 {[%clk 0:02:35.5]} 22. Qxb3 {[%clk 0:02:01.9]}
22... Qxd6 {[%clk 0:02:36.4]} 23. Rd1 {[%clk 0:02:03.4]} 23... Qc5 {[%clk
0:02:25.5]} 24. h4 {[%clk 0:01:52.5]} 24... Rxf3 {[%clk 0:02:10.1]} 25. Qxf3
{[%clk 0:01:50.2]} 25... Rf8 {[%clk 0:02:10.9]} 26. Qe4 {[%clk 0:01:24.7]} 26...
Qxf2+ {[%clk 0:02:10.5]} 27. Kh1 {[%clk 0:01:26.3]} 27... Kh8 {[%clk 0:01:59.7]}
28. Rd8 {[%clk 0:01:03.8]} 28... Rxd8 {[%clk 0:01:51.8]} 29. Nxd8 {[%clk
0:01:05.7]} 29... Qxb2 {[%clk 0:01:34.6]} 30. Qa8 {[%clk 0:00:41.1]} 30... Qc1+
{[%clk 0:01:05.3]} 31. Kh2 {[%clk 0:00:42.2]} 31... Be5+ {[%clk 0:01:06.7]} 32.
g3 {[%clk 0:00:42.4]} 32... Qd2+ {[%clk 0:00:53.7]} 33. Kh3 {[%clk 0:00:40.8]}
33... Qd5 {[%clk 0:00:19.4]} 34. Nf7+ {[%clk 0:00:41.2]} 34... Kg7 {[%clk
0:00:19.3]} 35. Qxd5 {[%clk 0:00:43.1]} 35... exd5 {[%clk 0:00:20.5]} 36. Nxe5
{[%clk 0:00:45]} 36... Kf6 {[%clk 0:00:20.9]} 37. Nd3 {[%clk 0:00:46.7]} 37...
b3 {[%clk 0:00:20.9]} 38. Kg4 {[%clk 0:00:48.1]} 38... Ke6 {[%clk 0:00:19.6]}
39. Kf4 {[%clk 0:00:48.9]} 39... h5 {[%clk 0:00:17.8]} 40. a5 {[%clk 0:00:23.8]}
40... Kd6 {[%clk 0:00:18.3]} 41. Ke3 {[%clk 0:00:23.3]} 41... Kc6 {[%clk
0:00:13.2]} 42. Kd4 {[%clk 0:00:24.7]} 42... Kb5 {[%clk 0:00:14.5]} 43. Kc3
{[%clk 0:00:25.2]} 43... Kxa5 {[%clk 0:00:14.7]} 44. Kxb3 {[%clk 0:00:23.9]}
44... Kb5 {[%clk 0:00:15.9]} 45. Nf4 {[%clk 0:00:25.8]} 45... d4 {[%clk
0:00:12.8]} 46. Nxg6 {[%clk 0:00:26.3]} 46... a5 {[%clk 0:00:14.4]} 47. Ne5
{[%clk 0:00:25]} 47... a4+ {[%clk 0:00:15.5]} 48. Ka3 {[%clk 0:00:26.3]} 48...
Kc5 {[%clk 0:00:11.6]} 49. Kxa4 {[%clk 0:00:27.5]} 49... Kd5 {[%clk 0:00:12.8]}
50. Ng6 {[%clk 0:00:14.8]} 50... Ke4 {[%clk 0:00:13.2]} 51. Kb3 {[%clk
0:00:14.6]} 51... Kf3 {[%clk 0:00:13]} 52. Kc4 {[%clk 0:00:14.6]} 52... Kxg3
{[%clk 0:00:11.6]} 53. Kxd4 {[%clk 0:00:15.6]} 53... Kg4 {[%clk 0:00:12.3]} 54.
Ke5 {[%clk 0:00:17.5]} 1-0